{"text_format":"1","workbook":"xlsx","n_sheets":1,"sheets":["Wegebau"],"not_rendered":{"charts":0,"images":0,"macros":1,"external_links":0,"defined_names":2,"comments":1,"pivot_tables":0},"unopened":[],"bounds":{"document_bytes":16777216,"sheet_cells":100000,"rows_first":2000,"rows_last":500,"rows_between":2000,"halvings":0,"cell_chars":16384,"cell_head_chars":4096},"cells_cut":0,"cells_raw":0,"read":"whole","date_system":"1900"}

{"sheet":"Wegebau","index":0,"n_rows":180,"n_cols":19,"rows_kept":180,"cut":false,"hidden":false,"merged":[[17,12,17,17],[176,2,179,2],[19,2,19,7],[19,12,19,17],[121,2,121,6],[122,2,122,6],[123,2,123,6],[124,2,124,6],[103,6,103,7],[68,6,68,7],[70,6,70,7],[69,6,69,7],[72,6,72,7],[67,12,67,15],[68,12,68,15],[69,12,69,15],[114,2,114,8],[84,2,84,5],[84,12,84,15],[81,2,81,5],[85,2,85,5],[96,6,96,7],[85,6,85,7],[98,2,98,5],[48,1,49,6],[51,6,51,9],[96,16,96,17],[51,16,51,19],[58,15,58,18],[60,12,60,18],[76,2,76,8],[96,2,96,5],[97,2,97,5],[70,2,70,5],[67,6,67,7],[3,16,3,18],[4,13,4,18],[3,6,3,8],[4,3,4,8],[76,12,76,18],[48,11,49,16],[58,5,58,8],[11,2,11,7],[13,2,13,7],[60,2,60,8],[33,4,33,5],[53,2,53,8],[35,4,35,8],[37,4,37,8],[33,7,33,8],[33,17,33,18],[11,12,11,17],[13,12,13,17],[17,2,17,7],[67,2,67,5],[68,2,68,5],[16,12,16,17],[25,2,25,7],[26,2,26,7],[16,2,16,7],[117,12,117,18],[139,2,139,8],[117,2,117,8],[131,2,131,6],[118,12,118,18],[120,12,120,18],[118,7,118,8],[125,2,125,6],[126,2,126,6],[127,2,127,6],[128,2,128,6],[129,2,129,6],[130,2,130,6],[119,12,119,18],[33,14,33,15],[82,6,82,7],[88,12,88,15],[110,12,110,15],[27,2,27,7],[25,12,25,17],[26,12,26,17],[27,12,27,17],[100,2,100,5],[34,1,35,2],[35,14,35,18],[37,14,37,18],[96,12,96,15],[81,6,81,7],[81,16,81,17],[97,16,97,17],[72,2,72,5],[72,12,72,15],[67,16,67,17],[68,16,68,17],[69,16,69,17],[70,16,70,17],[72,16,72,17],[81,12,81,15],[82,2,82,5],[82,12,82,15],[83,2,83,5],[83,12,83,15],[82,16,82,17],[83,16,83,17],[69,2,69,5],[70,12,70,15],[53,12,53,18],[100,6,100,7],[98,6,98,7],[97,6,97,7],[99,6,99,7],[88,6,88,7],[98,16,98,17],[99,16,99,17],[100,16,100,17],[99,12,99,15],[97,12,97,15],[100,12,100,15],[98,12,98,15],[110,6,110,7],[136,11,136,18],[161,2,161,4],[161,5,161,8],[162,2,162,4],[162,5,162,8],[83,6,83,7],[84,6,84,7],[157,2,157,8],[158,2,158,8],[159,2,160,8],[136,1,136,8],[138,2,138,8],[138,12,138,18],[88,2,88,5],[116,2,116,8],[116,12,116,18],[99,2,99,5],[114,12,114,18],[142,2,142,4],[139,12,139,18],[84,16,84,17],[85,16,85,17],[85,12,85,15],[169,2,169,4],[169,12,169,14],[171,2,171,4],[171,6,171,7],[171,14,171,15],[171,17,171,18],[164,4,164,7],[151,2,151,4],[140,2,141,8],[144,4,144,7],[142,5,142,8],[150,2,150,8],[149,2,149,8],[140,12,141,18],[142,12,142,14],[142,15,142,18],[148,2,148,8],[121,12,131,18],[147,12,153,18],[17,23,17,27],[21,2,21,8],[22,2,22,8],[21,23,22,27],[118,2,119,6],[21,12,21,18],[22,12,22,18],[43,12,43,17],[43,2,43,7],[110,16,110,17],[112,2,112,7],[112,12,112,17],[103,2,103,5],[105,2,105,5],[103,12,103,15],[105,12,105,15],[103,16,103,17],[88,16,88,17],[90,2,90,5],[90,12,90,15],[113,12,113,17],[110,2,110,5]]}
[null,"     (Wegebau)"]
[]
[]
[null,"  zum Antrag vom",null,null,null,null,null,null,null,null,null,"  zum Verwendungsnachweis vom"]
[null,"  Antragsteller",null,null,null,null,null,null,null,null,null,"  Antragsteller"]
[]
[]
[]
[null,"  Geplante Maßnahmen: ",null,null,null,null,null,null,"jeweils ankreuzen, wenn ja",null,null,"  Durchführung wie geplant",null,null,null,null,null,"  (ja = J, nein = N)"]
[]
[]
[null,null,"#   Maßnahme im Privatwald?",null,null,null,null,null,null,null,null,null,"#   Maßnahme im Privatwald?",null,null,null,null,null,{"$f":"IF(ISBLANK(I12),\" \",IF($Q$9=\"J\",I12,\" \"))","v":" "}]
[]
[null,null,"#   Maßnahme im Körperschaftswald?",null,null,null,null,null,null,null,null,null,"#   Maßnahme im Körperschaftswald?",null,null,null,null,null,{"$f":"IF(ISBLANK(I14),\" \",IF($Q$9=\"J\",I14,\" \"))","v":" "}]
[]
[]
[null,null,"#   Maßn. im Pr-Wald in ertragsschwachen Gebieten?",null,null,null,null,null,null,null,null,null,"#   Maßn. im Pr-Wald in ertragsschwachen Gebieten?",null,null,null,null,null,{"$f":"IF(ISBLANK(I17),\" \",IF($Q$9=\"J\",I17,\" \"))","v":" "}]
[null,null,"    (vgl. Erl. d. MLV v. 23.03.2023: ertragsschwache Gebiete \n     = Hochsauerlandkreis, Märkischer Kreis, Oberbergischer \n     Kreis, Kreise Olpe, Siegen-Wittgenstein, Soest)",null,null,null,null,null,null,null,null,null,"    (vgl. Erl. d. MLV v. 23.03.2023: ertragsschwache Gebiete \n     = Hochsauerlandkreis, Märkischer Kreis, Oberbergischer \n     Kreis, Kreise Olpe, Siegen-Wittgenstein, Soest)"]
[]
[null,null,"#   Maßn. im Kö-Wald in ertragsschwachen Gebieten?",null,null,null,null,null,null,null,null,null,"#   Maßn. im Kö-Wald in ertragsschwachen Gebieten?",null,null,null,null,null,{"$f":"IF(ISBLANK(I20),\" \",IF($Q$9=\"J\",I20,\" \"))","v":" "}]
[]
[null,null,{"$f":"IF(I20=\"\", \"\",IF(EXACT(I14,I20),\"\",\"Angaben für PrW und KöW müssen einheitlich erfolgen!\"))","v":""},null,null,null,null,null,null,null,null,null,{"$f":"IF(EXACT(S14,S20),\"\",\"Angaben für PrW und KöW müssen einheitlich erfolgen!\")","v":""}]
[null,null,{"$f":"IF(I17=\"\",\"\",IF(EXACT(I12,I17),\"\",\"Angaben für PrW und KöW müssen einheitlich erfolgen!\"))","v":""},null,null,null,null,null,null,null,null,null,{"$f":"IF(EXACT(S12,S17),\"\",\"Angaben für PrW und KöW müssen einheitlich erfolgen!\")","v":""}]
[]
[]
[null,null,"#   Maßnahme nach Privatwald-RL auf Wegeabschnitten, ",null,null,null,null,null,null,null,null,null,"#   Maßnahme nach Privatwald-RL auf Wegeabschnitten, "]
[null,null,"     die in den Kreisen HSK, MK, GM, OE, SI, SO liegen",null,null,null,null,null,null,null,null,null,"     die in den Kreisen HSK, MK, GM, OE, SI, SO liegen"]
[null,null,"     (vgl. Erl. vom 23.03.2023) ?",null,null,null,null,null,null,null,null,null,"     (vgl. Erl. vom 23.03.2023) ?",null,null,null,null,null,{"$f":"IF(ISBLANK(I28),\" \",IF($Q$9=\"J\",I28,\" \"))","v":" "}]
[]
[]
[null,"  (Art, Ort, Umfang, Durchf.-Zeitraum, Flächenermittlungsverfahren)","I.   ANTRAGSDATEN",null,null,null,null,null,null,null,null,"  I.  VERWENDUNGSNACHWEISDATEN"]
[]
[null,"  Durchführungszeitraum",null,null,null,null,null,null,null,null,null,"  Durchführungszeitraum",null,null,null,null,null,null,{"$f":"IF(U46=FALSE,\"Abweichung begründen  \",\"\")","v":"Abweichung begründen  "}]
[null,"  von …",null,null,null,null,"bis …",null,null,null,null,"  von …",null,null,null,null,"bis …"]
[null,"  Gemarkung"]
[null,null,null,null,null,null,null,null,null,null,null,"  Gemarkung",null,null,{"$f":"IF(ISBLANK(E36),\" \",IF(Q9=\"J\",E36,\" \"))","v":" "}]
[]
[null,"  Flur / Flurstück",null,null,null,null,null,null,null,null,null,"  Flur / Flurstück",null,null,{"$f":"IF(ISBLANK(E38),\" \",IF(Q9=\"J\",E38,\" \"))","v":" "}]
[]
[]
[null,"  Wegelänge","a) eigentliche Weglänge",null,null,null,null,null,"  lfd. Meter",null,null,"  Wegelänge","a) eigentliche Weglänge",null,null,null,null,null,"  lfd. Meter"]
[]
[null,null,"b) Wendeplatten u.ä.: deren Fläche in m2 / 3,5 m =",null,null,null,null,null,"  lfd. Meter",null,null,null,"b) Wendeplatten u.ä.: deren Fläche in m2 / 3,5 m =",null,null,null,null,{"$f":"IF($Q$9=\"J\",H43,\"\")","v":""},"  lfd. Meter"]
[null,null,"   (ggf. Messung oder Berechnung auf separatem Blatt)",null,null,null,null,null,null,null,null,null,"   (ggf. Messung oder Berechnung auf separatem Blatt)"]
[]
[null,null,"c) Gesamtlänge",null,null,null,null,{"$f":"IF(H43+H41=0,\"\",H41+H43)","v":""},"  lfd. Meter",null,null,null,"c) Gesamtlänge",null,null,null,null,{"$f":"IF($Q$9=\"J\",R41+R43,\"\")","v":""},"  lfd. Meter"]
[]
[]
[null,"  Falls Neubau: Wegedichte innerhalb des \n  Erschließungsgebiets (vgl. Nr. 3.3.3 PKW-RL)",null,null,null,null,null,null,"  lfd. m / ha",null,null,"  Falls Neubau: Wegedichte innerhalb des \n  Erschließungsgebiets (vgl. Nr. 5.3.6 PKW-RL)",null,null,null,null,null,{"$f":"IF($Q$9=\"J\",H49,\"\")","v":""},"  lfd. m / ha"]
[]
[]
[null,"  Begründung (falls über 45 lfd. m / ha)",null,null,null,null,{"$f":"IF(H49<=0,\"\",IF(H49>45,\" Neubau begründen!   \",\" Neubau ok.   \"))","v":""},null,null,null,null,"  Begründung (falls über 45 lfd. m / ha)",null,null,null,null,{"$f":"IF(R49=\"\",\"\",IF(R49<=45,\"\",IF(R49>45,\" Neubau begründen!   \",\" Neubau ok.   \")))","v":""}]
[]
[]
[]
[]
[null,"  Befestigungsbreite",null,null,null," Meter",null,null,null,null,null,"  Befestigungsbreite",null,null,{"$f":"IF($Q$9=\"J\",E57,IF($Q$9=\"J\",E57,\" \"))","v":" "}," Meter"]
[]
[null,"  Begründung (falls unter 3,5 m)",null,null,null,{"$f":"IF(E57=\"\",\"\",IF(E57<3.5,\" Befestigungsbreite begründen!  \",\" Befestigungsbreite ok.  \"))","v":""},null,null,null,null,null,"  Begründung (falls unter 3,50 m)",null,null,null,{"$f":"IF(O57=\" \",\" \",IF(O57>3.5,\" Befestigungsbreite begründen!  \",\" Befestigungsbreite ok.  \"))","v":" "}]
[]
[]
[]
[]
[]
[]
[null,"  Beantragte Vorarbeiten (Nr. 3.1.1 PKW-RL)",null,null,null,null,null,null,null,null,null,"  Beantragte Vorarbeiten (Nr. 3.1.1 PKW-RL)"]
[]
[null,null,"Antragspositionen\n(Maßnahmen nach Nr. 3.1.1 der RL)",null,null,null,"Gesamt-\npreis in EUR\nohne MwSt",null,null,null,null,null,"Abgerechnete Positionen\n(Maßnahmen nach Nr. 3.1.1 der RL)",null,null,null,"Gesamt-\npreis in EUR\nohne MwSt"]
[null,null,null,null,null,null,null,null,null,null,null,null,{"$f":"IF(C69=\"\",\"\",IF($Q$9=\"J\",C69,\"\"))","v":""},null,null,null,{"$f":"IF(G69=\"\",\"\",IF($Q$9=\"J\",G69,0))","v":""}]
[null,null,null,null,null,null,null,null,null,null,null,null,{"$f":"IF(C70=\"\",\"\",IF($Q$9=\"J\",C70,\"\"))","v":""},null,null,null,{"$f":"IF(G70=\"\",\"\",IF($Q$9=\"J\",G70,0))","v":""}]
[null,null,null,null,null,null,null,null,null,null,null,null,{"$f":"IF(C71=\"\",\"\",IF($Q$9=\"J\",C71,\"\"))","v":""},null,null,null,{"$f":"IF(G71=\"\",\"\",IF($Q$9=\"J\",G71,0))","v":""}]
[]
[null,null,"Summe Vorarbeiten in EUR",null,null,null,{"$f":"SUM(G69:G71)","v":0},null,null,null,null,null,"Summe Vorarbeiten in EUR",null,null,null,{"$f":"MIN(G73,SUM(Q69:Q71))","v":0}]
[]
[null,null,"Förderbetrag Vorarbeiten in EUR",null,null,null,null,null,{"$f":"IF(H46=\"\",0,\nIF(I12=\"x\",MIN(0.8*G73,3500),\nIF(I14=\"x\",MIN(0.5*G73,1750),\nIF(I17=\"x\",MIN(0.8*G73,3500),\nIF(I20=\"x\",MIN(0.5*G73,1750),\nIF(I28=\"x\",MIN(0.8*G73,3500),0))))))","v":0},null,null,null,"Förderbetrag Vorarbeiten in EUR",null,null,null,null,null,{"$f":"IF($Q$9=\"J\",$I$75,\nIF(H46=\"\",$S$83,\nIF(S12=\"x\",MIN(0.8*G73,3500),\nIF(S14=\"x\",MIN(0.5*G73,1750),\nIF(SI17=\"x\",MIN(0.8*G73,3500),\nIF(S20=\"x\",MIN(0.5*G73,1750),\nIF(S28=\"x\",MIN(0.8*G73,3500),0)))))))","v":0}]
[null,null,null,null,null,null,null,null,null,null,null,null,"(maximal der bewilligte Betrag) in"]
[]
[]
[null,"  Beantragte Wegebau-Maßnahmen (Nrn. 3.1.2 PKW-RL)",null,null,null,null,null,null,null,null,null,"  Beantragte Wegebau-Maßnahmen (Nrn. 3.1.2 PKW-RL)"]
[null,null,"(Wegeabschnitte von Betrieben bis 1.000 ha Forstbetriebsfläche)",null,null,null,null,null,null,null,null,null,"(soweit sie auf Betriebe mit höchstens 1.000 ha Fläche entfallen)"]
[]
[null,null,"Antragspositionen\n(Maßn. nach Nr. 3.1.2 der RL)",null,null,null,"Gesamt-\npreis in EUR\nohne MwSt",null,"Förderbetrag",null,null,null,"Abgerechnete Positionen\n(Maßn. nach Nr. 3.1.2 der RL)",null,null,null,"Gesamt-\npreis in EUR\nohne MwSt",null,"Förderbetrag"]
[null,null,"Grundinstandsetzung von Forstwirtschaftswegen \nlt. Planung / Angebot ",null,null,null,null,null,{"$f":"IF(G83=0,0,\nIF($I$17=\"x\",0.9*G83,\nIF($I$12=\"x\",0.7*G83,\nIF($I$20=\"x\",0.63*G83,\nIF($I$14=\"x\",0.5*G83,\"\")))))","v":0},null,null,null,"Grundinstandsetzung von Forstwirtschaftswegen \nlt. Planung / Angebot ",null,null,null,{"$f":"IF($Q$9=\"J\",G83,0)","v":0},null,{"$f":"IF($Q$9=\"J\",I83,\nIF($I$17=\"x\",0.9*Q83,\nIF($I$12=\"x\",0.7*Q83,\nIF($I$20=\"x\",0.63*Q83,\nIF($I$14=\"x\",0.5*Q83,0)))))","v":0}]
[null,null,"Ausbau und Befestigung bisher nicht oder nicht \nausreichend befestigter Forstwirtschaftswege \nlt. Planung / Angebot",null,null,null,null,null,{"$f":"IF(G84=0,0,\nIF($I$17=\"x\",0.9*G84,\nIF($I$12=\"x\",0.7*G84,\nIF($I$20=\"x\",0.63*G84,\nIF($I$14=\"x\",0.5*G84,\"\")))))","v":0},null,null,null,"Ausbau und Befestigung bisher nicht oder nicht ausreichend befestigter Forstwirtschaftswege \nlt. Planung / Angebot ",null,null,null,{"$f":"IF($Q$9=\"J\",G84,0)","v":0},null,{"$f":"IF($Q$9=\"J\",I84,\nIF($I$17=\"x\",0.9*Q84,\nIF($I$12=\"x\",0.7*Q84,\nIF($I$20=\"x\",0.63*Q84,\nIF($I$14=\"x\",0.5*Q84,0)))))","v":0}]
[null,null,"Bau von erforderlichen Anlagen wie Durchlässen, \nFurten, einfachen Brücken u.ä. \nlt. Planung / Angebot ",null,null,null,null,null,{"$f":"IF(G85=0,0,\nIF($I$17=\"x\",0.9*G85,\nIF($I$12=\"x\",0.7*G85,\nIF($I$20=\"x\",0.63*G85,\nIF($I$14=\"x\",0.5*G85,\"\")))))","v":0},null,null,null,"Bau von erforderlichen Anlagen wie Durchlässen, Furten, einfachen Brücken u.ä. \nlt. Planung / Angebot ",null,null,null,{"$f":"IF($Q$9=\"J\",G85,0)","v":0},null,{"$f":"IF($Q$9=\"J\",I85,\nIF($I$17=\"x\",0.9*Q85,\nIF($I$12=\"x\",0.7*Q85,\nIF($I$20=\"x\",0.63*Q85,\nIF($I$14=\"x\",0.5*Q85,0)))))","v":0}]
[null,null,"Neubau von Forstwirtschaftswegen\nlt. Planung / Angebot - \n(derzeit nicht ff. im Kö-Wald)",null,null,null,null,null,{"$f":"IF(G86=0,0,\nIF($I$17=\"x\",0.9*G86,\nIF($I$12=\"x\",0.7*G86,\nIF($I$20=\"x\",0.63*G86,\nIF($I$14=\"x\",0.5*G86,\"\")))))","v":0},null,null,null,"Neubau von Forstwirtschaftswegen\nlt. Planung / Angebot - \n(derzeit nicht ff. im Kö-Wald)",null,null,null,{"$f":"IF($Q$9=\"J\",G86,0)","v":0},null,{"$f":"IF($Q$9=\"J\",I86,\nIF($I$17=\"x\",0.9*Q86,\nIF($I$12=\"x\",0.7*Q86,\nIF($I$20=\"x\",0.63*Q86,\nIF($I$14=\"x\",0.5*Q86,0)))))","v":0}]
[]
[]
[null,null,"Summe Baumaßnahme lt. Angebot in EUR",null,null,null,{"$f":"SUM(G83:H86)","v":0},null,null,null,null,null,"Summe Baumaßnahme lt. VN in EUR",null,null,null,{"$f":"SUM(Q83:R86)","v":0}]
[]
[null,null,"Förderbetrag Baumaßnahme in EUR",null,null,null,null,null,{"$f":"SUM(I83:I86)","v":0},null,null,null,"Förderbetrag Baumaßnahme lt. VN in EUR",null,null,null,null,null,{"$f":"SUM(S83:S86)","v":0}]
[]
[]
[null,"  Beantragte Wegebau-Maßnahmen (Nrn. 3.1.2 PKW-RL)",null,null,null,null,null,null,null,null,null,"  Beantragte Wegebau-Maßnahmen (Nrn. 3.1.2 PKW-RL)"]
[null,null,"(Wegeabschnitte von Betrieben über 1.000 ha Forstbetriebsfläche)",null,null,null,null,null,null,null,null,null,"(soweit sie auf Betriebe mit mehr als 1.000 ha Fläche entfallen)"]
[]
[null,null,"Antragspositionen\n(Maßn. nach Nr. 3.1.2 der RL)",null,null,null,"Gesamt-\npreis in EUR\nohne MwSt",null,"Förderbetrag",null,null,null,"Abgerechnete Positionen\n(Maßn. nach Nr. 3.1.2 der RL)",null,null,null,"Gesamt-\npreis in EUR\nohne MwSt",null,"Förderbetrag"]
[null,null,"Grundinstandsetzung von Forstwirtschaftswegen \nlt. Planung / Angebot ",null,null,null,null,null,{"$f":"IF(G98=0,0,\nIF($I$17=\"x\",0.54*G98,\nIF($I$12=\"x\",0.42*G98,\nIF($I$20=\"x\",0.54*G98,\nIF($I$14=\"x\",0.42*G98,\"\")))))","v":0},null,null,null,"Grundinstandsetzung von Forstwirtschaftswegen \nlt. Planung / Angebot ",null,null,null,{"$f":"IF($Q$9=\"J\",G98,0)","v":0},null,{"$f":"IF($Q$9=\"J\",I98,\nIF($I$17=\"x\",0.9*Q98,\nIF($I$12=\"x\",0.7*Q98,\nIF($I$20=\"x\",0.63*Q98,\nIF($I$14=\"x\",0.5*Q98,0)))))","v":0}]
[null,null,"Ausbau und Befestigung bisher nicht oder nicht ausreichend befestigter Forstwirtschaftswege \nlt. Planung / Angebot ",null,null,null,null,null,{"$f":"IF(G99=0,0,\nIF($I$17=\"x\",0.54*G99,\nIF($I$12=\"x\",0.42*G99,\nIF($I$20=\"x\",0.54*G99,\nIF($I$14=\"x\",0.42*G99,\"\")))))","v":0},null,null,null,"Ausbau und Befestigung bisher nicht oder nicht ausreichend befestigter Forstwirtschaftswege \nlt. Planung / Angebot ",null,null,null,{"$f":"IF($Q$9=\"J\",G99,0)","v":0},null,{"$f":"IF($Q$9=\"J\",I99,\nIF($I$17=\"x\",0.9*Q99,\nIF($I$12=\"x\",0.7*Q99,\nIF($I$20=\"x\",0.63*Q99,\nIF($I$14=\"x\",0.5*Q99,0)))))","v":0}]
[null,null,"Bau von erforderlichen Anlagen wie Durchlässen, Furten, einfachen Brücken u.ä. \nlt. Planung / Angebot ",null,null,null,null,null,0,null,null,null,"Bau von erforderlichen Anlagen wie Durchlässen, Furten, einfachen Brücken u.ä. \nlt. Planung / Angebot ",null,null,null,{"$f":"IF($Q$9=\"J\",G100,0)","v":0},null,{"$f":"IF($Q$9=\"J\",I100,\nIF($I$17=\"x\",0.9*Q100,\nIF($I$12=\"x\",0.7*Q100,\nIF($I$20=\"x\",0.63*Q100,\nIF($I$14=\"x\",0.5*Q100,0)))))","v":0}]
[null,null,"Neubau von Forstwirtschaftswegen\nlt. Planung / Angebot - \n(derzeit nicht ff. im Kö-Wald)",null,null,null,null,null,{"$f":"IF(G101=0,0,\nIF($I$17=\"x\",0.54*G101,\nIF($I$12=\"x\",0.42*G101,\nIF($I$20=\"x\",0*G101,\nIF($I$14=\"x\",0*G101,\"\")))))","v":0},null,null,null,"Neubau von Forstwirtschaftswegen\nlt. Planung / Angebot - \n(derzeit nicht ff. im Kö-Wald)",null,null,null,{"$f":"IF($Q$9=\"J\",G101,0)","v":0},null,{"$f":"IF($Q$9=\"J\",I101,\nIF($I$17=\"x\",0.9*Q101,\nIF($I$12=\"x\",0.7*Q101,\nIF($I$20=\"x\",0.63*Q101,\nIF($I$14=\"x\",0.5*Q101,0)))))","v":0}]
[]
[]
[null,null,"Summe Baumaßnahme lt. Angebot in EUR",null,null,null,{"$f":"SUM(G98:H101)","v":0},null,null,null,null,null,"Summe Baumaßnahme lt. Rg: in EUR",null,null,null,{"$f":"SUM(Q98:R101)","v":0}]
[]
[null,null,"Förderbetrag Baumaßnahme in EUR",null,null,null,null,null,{"$f":"SUM(I98:I101)","v":0},null,null,null,"Förderbetrag Baumaßnahme lt. VN in EUR",null,null,null,null,null,{"$f":"SUM(S98:S101)","v":0}]
[]
[]
[]
[]
[null,null,"Summe ges. Wegebauprojekt in EUR",null,null,null,{"$f":"G89+G104+G73","v":0},null,null,null,null,null,"Summe ges. Wegebauprojekt in EUR",null,null,null,{"$f":"MIN(G73+G104+G89,\n            Q73+Q104+Q89)","v":0}]
[]
[null,null,"Förderbetrag ges. Wegebauprojekt in EUR",null,null,null,null,null,{"$f":"I75+I106+I91","v":0},null,null,null,"Förderbetrag ges. Wegebauprojekt in EUR",null,null,null,null,null,{"$f":"MIN(I106,S106)\n +MIN(I91,S91)\n +MIN(I75,S75)","v":0}]
[null,null,null,null,null,null,null,null,null,null,null,null,"(maximal der bewilligte Betrag) in"]
[null,null,{"$f":"IF(I113=0,\" \",IF(I113<12500,\"Wurde die Bagatellgrenze KöW (= 12.500 EUR) oder PrW (= 2.500 EUR) beachtet?\",\nIF(I113<2500,\"Bagatellgrenze PrW (= 2.500 EUR) beachtet?\",\" \")))","v":" "},null,null,null,null,null,null,null,null,null,{"$f":"IF(S113=0,\" \",IF(S113<12500,\"Wurde die Bagatellgrenze KöW (= 12.500 EUR) oder PrW (= 2.500 EUR) beachtet?\",\nIF(S113<2500,\"Bagatellgrenze PrW (= 2.500 EUR) beachtet?\",\" \")))","v":" "}]
[]
[null,null,"  Namen der einzelnen Waldbesitzer/Waldbesitzerinnen",null,null,null,null,null,null,null,null,null,{"$f":"IF(S114=0,\" \",IF(S114<12500,\"Bagatellgrenze KöW (= 12.500 EUR) oder PrW (= 2.500 EUR) beachtet?\",\nIF(S114<2500,\"Bagatellgrenze PrW (= 2.500 EUR) beachtet?\",\" \")))","v":" "}]
[null,null,"  ",null,null,null,null,null,null,null,null,null,{"$f":"IF(S115=0,\" \",IF(S115<12500,\"Bagatellgrenze KöW (= 12.500 EUR) oder PrW (= 2.500 EUR) beachtet?\",\nIF(S115<2500,\"Bagatellgrenze PrW (= 2.500 EUR) beachtet?\",\" \")))","v":" "}]
[null,null,"    bitte ankreuzen, wer nach Nr. 3.2.1 RL \n    FBG-Mitglied oder nicht",null,null,null,null,"FBG-Mitglied?",null,null,null,null,{"$f":"IF(S117=0,\" \",IF(S117<12500,\"Bagatellgrenze KöW (= 12.500 EUR) oder PrW (= 2.500 EUR) beachtet?\",\nIF(S117<2500,\"Bagatellgrenze PrW (= 2.500 EUR) beachtet?\",\" \")))","v":" "}]
[null,null,null,null,null,null,null,"ja","nein",null,null,null," "]
[null,null,null,null,null,null,null,null,null,null,null,null," "]
[]
[]
[]
[]
[]
[]
[]
[]
[]
[]
[]
[]
[]
[null," II.  STELLUNGNAHME DER LEITUNG DES FBB",null,null,null,null,null,null,null,null,null," II.  STELLUNGNAHME DER LEITUNG DES FBB"]
[null,"  II.1.    Fachliche Stellungnahme",null,null,null,null,null,null,null,null,null,"  II.1.    Fachliche Stellungnahme (falls Abweichung)"]
[null,"            falls Planung ohne forstfachlich qualifizierte Person erfolgte\n            oder Name der qualifizierten Person:",null,null,null,null,null,null,null,null,null,"            falls Planung ohne forstfachlich qualifizierte Person erfolgte\n            oder Name der qualifizierten Person:"]
[]
[]
[]
[null,null,"Das beantragte Vorhaben wird von mir für forstfachlich notwendig und zweckmäßig gehalten.",null,null,null,null,null,null,null,null,null,{"$f":"IF(ISBLANK(Q9),\" \",IF(Q9=\"J\",\"Die Änderung des Vorhabens wird von mir für forstfachlich notwendig und zweckmäßig gehalten.\",\" \"))","v":" "}]
[]
[]
[null,null,"Ort, Datum",null,null,null,"(Name und Unterschrift)",null,null,null,null,null,"Ort, Datum",null,null,null,null,null,"Name und Unterschrift"]
[]
[null,"   III.  Prüfung der bewilligenden Stelle",null,null,null,null,null,null,null,null,null,"  II.2.    Bemerkungen"]
[]
[]
[null,null,"  Nr. 3.3.3 PKW-RL: Wurden Flächen zwecks"]
[null,null,"  Naturschutz d. Antragsteller(in) unentgeltlich "]
[null,null,"  übertragen?"]
[null,null,null,null,null,null,"  ja",null,"  nein"]
[]
[null,null,":"]
[]
[null,"  Fachliche Stellungnahme durch FBB, etc."]
[]
[]
[]
[null,null,"Das beantragte Vorhaben wird von mir für forst-\nfachlich notwendig und zweckmäßig gehalten."]
[]
[]
[]
[null,null,"Ort, Datum",null,null,null,null,null,"Name und Unterschrift d. FBB"]
[]
[]
[]
[null,"  Folgende Belege sind beigefügt:",null,null,null,null,null,null,null,null,null,"  Folgende Belege sind beigefügt:"]
[]
[null,null,"bei Wegebau",null,null,null,null,null,null,null,null,null,"bei Wegebau"]
[]
[null,null,"Wegebauanzeige",null,null,null,"Karte",null,null,null,null,null,"Rechnung",null,"Wiegescheine",null,null,"Zahlungsnachweis"]
[]
[]
[]
[null,null,"3.1.1 Vorarbeiten",null,"80 %, max. 3.500 EUR / ha",null,null,null,null,null,null,null,"50 %, max. 1.750 EUR / Antrag"]
[null,null,"3.1.2 Wegebaumaßnahmen",null,"70 %, ",null,null,null,null,null,null,null,"50 %, "]
[null,null,null,null,"in ertragsschwachen Gebieten: 90 %",null,null,null,null,null,null,null,"in ertragsschwachen Gebieten: 63 %"]
[null,null,null,null,"Betriebe über 1.000 ha Forstbetriebsfläche: 42 %, ",null,null,null,null,null,null,null,"Betriebe über 1.000 ha Forstbetriebsfläche: 42 %, "]
[null,null,null,null,"in ertragsschwachen Gebieten: 54 %",null,null,null,null,null,null,null,"in ertragsschwachen Gebieten: 54 %"]